bitfinex/quotes_SOLUSD_20250522
["timestamp","ask_amount","ask_price","bid_price","bid_amount"]
[1747878025053,5.7680914,173.37,173.33,29.26890213]
[1747878025240,35.03699353,173.37,173.32,29.26890213]
[1747878025437,49.84,173.36,173.18,10.0]
[1747878025628,29.26890213,173.32,173.27,29.26890213]
[1747878025830,29.26890213,173.32,173.22,26.0]
[1747878026030,29.26890213,173.32,173.27,29.26890213]
[1747878026233,29.26890213,173.32,173.22,26.0]
[1747878026458,29.26890213,173.32,173.27,29.26890213]
[1747878026658,29.26890213,173.3,173.25,29.26890213]
[1747878027234,29.26890213,173.3,173.25,28.76890213]
[1747878027452,5.7700075,173.31,173.27,29.26890213]
[1747878027652,5.7700075,173.31,173.26,29.26890213]
[1747878027952,5.7700075,173.31,173.27,29.26890213]
[1747878028179,35.03890963,173.31,173.26,29.26890213]
[1747878028559,29.26890213,173.27,173.21,29.26890213]
[1747878028860,29.26890213,173.25,173.2,29.26890213]
[1747878029047,79.10890213,173.26,173.17,26.0]
[1747878029229,79.10890213,173.26,173.21,29.26890213]
[1747878029429,29.26890213,173.24,173.14,5.77567286]
[1747878029628,29.26890213,173.23,173.18,29.26890213]
[1747878029833,29.26890213,173.25,173.2,29.26890213]
[1747878030134,29.26890213,173.24,173.19,29.26890213]
[1747878030462,5.77267216,173.23,173.19,29.26890213]
[1747878031557,5.77267216,173.23,173.14,26.0]
[1747878031558,20.20435258,173.23,173.16,29.26890213]
[1747878031739,29.26890213,173.22,173.17,29.26890213]
[1747878032453,5.77333872,173.21,173.17,29.26890213]
[1747878032766,5.77333872,173.21,173.18,29.26890213]
[1747878033056,5.77200577,173.25,173.19,29.26890213]
[1747878033256,82.7,173.24,173.2,29.26890213]
[1747878034061,48.08,173.23,173.2,29.26890213]
[1747878034258,53.85200577,173.25,173.22,29.26890213]
[1747878034944,221.81163241,173.27,173.24,29.26890213]
[1747878035263,216.04,173.27,173.26,29.26890213]
[1747878035462,221.81133952,173.27,173.15,34.64]
[1747878035650,29.26890213,173.26,173.16,5.77467969]
[1747878035980,29.26890213,173.26,173.21,29.26890213]
[1747878036261,236.23968833,173.27,173.16,5.77467969]
[1747878036438,29.26890213,173.26,173.21,29.26890213]
[1747878037577,236.23968833,173.27,173.21,29.26890213]
[1747878037746,48.08,173.26,173.23,29.26890213]
[1747878038065,48.08,173.26,173.25,29.26890213]
[1747878038452,216.04,173.27,173.25,29.26890213]
[1747878038658,216.04,173.27,173.26,29.26890213]
[1747878039060,7.66073268,173.28,173.26,29.26890213]
[1747878039283,7.66073268,173.28,173.27,29.26890213]
[1747878041336,5.76943198,173.33,173.27,29.26890213]
[1747878041567,5.76943198,173.33,173.32,29.26890213]
[1747878041872,53.84915175,173.34,173.32,29.26890213]
[1747878042043,53.84915175,173.34,173.33,29.26890213]
[1747878042565,53.84915175,173.34,173.32,29.26890213]
[1747878042771,48.08,173.34,173.26,5.77162547]
[1747878042943,48.08,173.34,173.33,29.26890213]
[1747878043143,53.84900888,173.34,173.33,29.26890213]
[1747878043669,53.84900888,173.34,173.32,29.26890213]
[1747878044244,5.76801061,173.37,173.33,29.26890213]
[1747878044447,48.08,173.36,173.33,29.26890213]
[1747878045078,29.26890213,173.39,173.34,29.26890213]
[1747878045371,48.08,173.39,173.29,29.26890213]
[1747878045675,53.84743553,173.39,173.35,29.26890213]
[1747878047856,53.84743553,173.39,173.29,29.26890213]
[1747878048067,48.08,173.39,173.37,29.26890213]
[1747878048546,5.76673441,173.41,173.38,29.26890213]
[1747878048752,7.67384086,173.42,173.4,29.26890213]
[1747878049472,13.44019271,173.42,173.36,29.26890213]
[1747878049977,42.70909484,173.42,173.37,29.26890213]
[1747878050151,13.44019271,173.42,173.38,29.26890213]
[1747878050348,42.70909484,173.42,173.37,29.26890213]
[1747878050564,29.26890213,173.41,173.31,26.0]
[1747878050757,29.26890213,173.39,173.34,29.26890213]
[1747878050962,29.26890213,173.38,173.34,29.26890213]
[1747878051709,5.76801061,173.37,173.34,29.26890213]
[1747878052670,77.32890213,173.36,173.23,14.43156425]
[1747878052980,29.26890213,173.33,173.22,5.77300542]
[1747878053213,34.62,173.32,173.27,29.26890213]
[1747878053393,34.62,173.32,173.28,29.26890213]
[1747878053552,34.62,173.32,173.3,29.26890213]
[1747878053866,29.26890213,173.36,173.31,29.26890213]
[1747878054065,82.68,173.35,173.31,29.26890213]
[1747878054807,48.06,173.34,173.32,29.26890213]
[1747878055107,48.06,173.34,173.3,29.26890213]
[1747878055269,48.06,173.34,173.31,29.26890213]
[1747878055470,35.03857672,173.32,173.19,14.43461536]
[1747878055695,29.26890213,173.3,173.25,29.26890213]
[1747878055889,29.26890213,173.29,173.23,29.26890213]
[1747878056100,29.26890213,173.28,173.22,29.26890213]
[1747878056302,34.62,173.31,173.09,5.77734126]
[1747878056303,48.06,173.27,173.09,5.77734126]
[1747878056507,29.26890213,173.21,173.16,29.26890213]
[1747878056681,48.06,173.2,173.16,29.26890213]
[1747878056869,77.32890213,173.2,173.15,29.26890213]
[1747878057076,29.26890213,173.19,173.13,29.26890213]
[1747878057401,29.26890213,173.19,173.14,29.26890213]
[1747878057595,53.83399889,173.2,173.15,29.26890213]
[1747878057895,53.83399889,173.2,173.16,29.26890213]
[1747878058074,48.06,173.2,173.17,29.26890213]
[1747878058487,29.26890213,173.18,173.13,29.26890213]
[1747878058698,29.26890213,173.14,173.09,29.26890213]
[1747878058901,48.06,173.13,173.09,29.26890213]
[1747878059117,48.06,173.13,173.1,29.26890213]
[1747878059605,48.06,173.13,173.03,26.0]
[1747878059910,77.32890213,173.13,173.08,29.26890213]
[1747878060209,29.26890213,173.12,173.07,29.26890213]
[1747878060411,20.20916067,173.19,173.1,29.26890213]
[1747878060583,29.26890213,173.17,173.12,29.26890213]
[1747878061106,29.26890213,173.15,173.1,29.26890213]
[1747878061480,5.7753393,173.15,173.11,29.26890213]
[1747878061673,37.95514546,173.15,173.1,29.26890213]
[1747878061915,29.26890213,173.14,173.08,29.26890213]
[1747878062281,29.26890213,173.14,173.09,29.26890213]
[1747878062620,37.95514546,173.15,173.1,29.26890213]
[1747878063197,2.91090403,173.15,173.13,29.26890213]
[1747878063499,52.93497065,173.17,173.07,31.77789463]
[1747878063500,47.16,173.17,173.14,29.26890213]
[1747878063675,5.77400542,173.19,173.15,29.26890213]
[1747878063873,263.2,173.2,173.18,29.26890213]
[1747878064106,7.51679675,173.27,173.19,29.26890213]
[1747878064107,5.77200577,173.25,173.19,29.26890213]
[1747878064292,47.16,173.24,173.22,29.26890213]
[1747878064912,47.16,173.24,173.23,29.26890213]
[1747878065281,47.16,173.26,173.23,29.26890213]
[1747878065485,29.26890213,173.24,173.15,60.64]
[1747878065675,63.90890213,173.23,173.18,29.26890213]
[1747878065993,34.64,173.23,173.18,29.26890213]
[1747878066197,34.64,173.23,173.19,29.26890213]
[1747878066617,34.64,173.23,173.2,29.26890213]
[1747878066786,40.41300468,173.23,173.2,29.26890213]
[1747878067887,8.59743215,173.24,173.2,29.26890213]
[1747878068087,47.16,173.23,173.13,5.77600646]
[1747878068407,29.26890213,173.22,173.17,29.26890213]
[1747878068707,5.77367205,173.2,173.16,29.26890213]
[1747878068897,69.68257418,173.2,173.15,29.26890213]
[1747878069202,40.41367205,173.2,173.16,29.26890213]
[1747878069408,40.41367205,173.2,173.17,29.26890213]
[1747878069612,54.84785218,173.2,173.01,49.13010808]
[1747878069811,5.77367205,173.2,173.16,29.26890213]
[1747878070007,47.16,173.2,173.18,29.26890213]
[1747878070708,5.77400542,173.19,173.18,29.26890213]
[1747878070916,5.7735243,173.21,173.18,29.26890213]
[1747878071092,47.16,173.2,173.19,29.26890213]
[1747878071295,29.26890213,173.25,173.19,29.26890213]
[1747878071296,13.28814589,173.27,173.19,29.26890213]
[1747878071503,7.51679675,173.27,173.26,29.26890213]
[1747878073487,5.77077328,173.29,173.26,29.26890213]
[1747878073799,5.77077328,173.29,173.28,29.26890213]
[1747878073978,5.77077328,173.29,173.2,5.77349269]
[1747878074180,5.76934171,173.33,173.28,29.26890213]
[1747878074410,47.14,173.32,173.3,29.26890213]
[1747878074594,52.90934171,173.33,173.3,29.26890213]
[1747878074800,52.90934171,173.33,173.26,5.77145674]
[1747878075112,52.90934171,173.33,173.31,29.26890213]
[1747878075886,216.14,173.36,173.32,29.26890213]
[1747878076085,216.14,173.36,173.35,29.26890213]
[1747878076387,216.14,173.36,173.34,29.26890213]
[1747878076991,221.90849107,173.36,173.33,29.26890213]
[1747878077204,216.14,173.36,173.35,29.26890213]
[1747878077691,221.90834333,173.36,173.34,29.26890213]
[1747878078389,216.14,173.36,173.34,29.26890213]
[1747878078594,216.14,173.36,173.3,5.77017233]
[1747878078793,216.14,173.36,173.34,29.26890213]
[1747878079517,216.14,173.36,173.35,29.26890213]
[1747878079899,216.14,173.36,173.3,5.77017233]
[1747878080104,216.14,173.36,173.35,29.26890213]
[1747878080299,216.14,173.36,173.34,29.26890213]
[1747878080510,221.90834333,173.36,173.33,29.26890213]
[1747878080768,221.90834333,173.36,173.34,29.26890213]
[1747878081292,221.90834333,173.36,173.29,26.0]
[1747878081527,221.90834333,173.36,173.33,29.26890213]
[1747878081913,221.90834333,173.36,173.34,29.26890213]
[1747878082114,221.90836965,173.36,173.34,29.26890213]
[1747878082633,221.90836965,173.36,173.24,4.77945521]
[1747878082634,63.88890213,173.35,173.24,4.63729364]
[1747878082836,29.26890213,173.34,173.28,29.26890213]
[1747878083200,29.26890213,173.3,173.25,29.26890213]
[1747878083409,236.32922797,173.36,173.24,29.26890213]
[1747878083410,111.00890213,173.29,173.24,29.26890213]
[1747878083628,111.00890213,173.29,173.18,5.77433883]
[1747878083629,34.62,173.29,173.27,29.26890213]
[1747878083815,236.32922797,173.36,173.19,0.14216157]
[1747878083816,81.74,173.33,173.28,29.26890213]
[1747878084128,87.50963938,173.33,173.29,29.26890213]
[1747878085120,81.74,173.33,173.31,29.26890213]
[1747878085629,81.74,173.33,173.25,26.0]
[1747878085819,81.74,173.33,173.3,29.26890213]
[1747878086022,5.76867608,173.35,173.3,29.26890213]
[1747878086234,87.50867608,173.35,173.3,29.26890213]
[1747878087625,87.50867608,173.35,173.31,19.52525255]
[1747878088111,87.50867608,173.35,173.3,19.52525255]
[1747878088430,81.74,173.35,173.32,19.52525255]
[1747878088652,81.74,173.35,173.33,19.52525255]
[1747878089313,81.74,173.35,173.26,5.77161229]
[1747878089314,221.90837093,173.36,173.32,19.52525255]
[1747878090746,216.14,173.36,173.35,19.52525255]
[1747878090944,52.88691206,173.41,173.35,19.52525255]
[1747878091118,52.88691206,173.41,173.29,5.77053053]
[1747878091119,52.88691206,173.41,173.38,19.52525255]
[1747878094147,52.88691206,173.41,173.39,19.52525255]
[1747878094338,5.76691206,173.41,173.39,19.52525255]
[1747878095448,45.72,173.43,173.4,19.52525255]
[1747878095654,45.72,173.43,173.42,19.52525255]
[1747878095943,45.72,173.43,173.41,19.52525255]
[1747878096533,51.48603333,173.43,173.29,14.42598746]
[1747878096742,51.48603333,173.43,173.31,5.7700075]
[1747878096743,19.52525255,173.4,173.31,5.7700075]
[1747878096946,19.52525255,173.38,173.33,19.52525255]
[1747878097139,54.14525255,173.37,173.26,5.77167263]
[1747878097338,54.14525255,173.37,173.31,19.52525255]
[1747878097339,5.76867608,173.35,173.31,19.52525255]
[1747878097749,51.4884061,173.36,173.33,19.52525255]
[1747878098255,85.43451697,173.36,173.27,8.30404426]
[1747878098548,19.52525255,173.29,173.27,8.30404426]
[1747878098848,45.72,173.29,173.27,8.30404426]
[1747878099348,5.76967459,173.32,173.28,19.52525255]
[1747878099927,25.29492714,173.32,173.23,31.77261806]
[1747878100130,25.29492714,173.32,173.27,19.52525255]
[1747878100661,25.29492714,173.32,173.26,19.52525255]
[1747878100662,19.52525255,173.31,173.26,19.52525255]
[1747878100837,19.52525255,173.31,173.25,19.52525255]
[1747878101153,19.52525255,173.31,173.26,19.52525255]
[1747878101545,5.77034045,173.3,173.26,19.52525255]
[1747878101753,5.76967459,173.32,173.27,19.52525255]
[1747878102154,25.29492714,173.32,173.27,19.52525255]
[1747878103282,5.76938317,173.33,173.29,19.52525255]
[1747878103553,51.48938317,173.33,173.29,19.52525255]
[1747878103860,71.01463572,173.33,173.28,19.52525255]
[1747878104162,71.01463572,173.33,173.27,19.52525255]
[1747878104637,71.01463572,173.33,173.28,19.52525255]
[1747878105041,51.48938317,173.33,173.28,19.52525255]
[1747878105242,45.72,173.33,173.31,19.52525255]
[1747878105945,45.72,173.33,173.27,5.7712351]
[1747878106260,51.48948584,173.33,173.26,31.77164098]
[1747878106563,51.48948584,173.33,173.26,26.0]
[1747878106751,51.48948584,173.33,173.26,31.77152016]
[1747878107166,51.48948584,173.33,173.26,26.0]
[1747878107370,71.01473839,173.33,173.28,19.52525255]
[1747878107574,51.48948584,173.33,173.29,19.52525255]
[1747878108448,71.01473839,173.33,173.28,19.52525255]
[1747878108761,85.43809268,173.33,173.28,19.52525255]
[1747878108960,19.52525255,173.32,173.25,26.0]
[1747878109157,19.52525255,173.31,173.26,19.52525255]
[1747878109557,51.48948584,173.33,173.29,19.52525255]
[1747878109760,45.72,173.32,173.3,19.52525255]
[1747878110073,45.72,173.32,173.31,19.52525255]
[1747878110455,51.48967459,173.32,173.29,19.52525255]
[1747878110801,71.01492714,173.32,173.26,19.52525255]
[1747878111373,71.01492714,173.32,173.27,19.52525255]
[1747878111778,51.48967459,173.32,173.29,19.52525255]
[1747878112075,51.48967459,173.32,173.28,19.52525255]
[1747878112963,51.48967459,173.32,173.29,19.52525255]
[1747878113360,51.48967459,173.32,173.22,26.0]
[1747878113361,71.01492714,173.32,173.26,19.52525255]
[1747878113571,71.01492714,173.32,173.14,19.52525255]
[1747878113572,19.52525255,173.29,173.2,26.0]
[1747878113778,54.14525255,173.28,173.23,19.52525255]
[1747878113981,34.62,173.28,173.23,19.52525255]
[1747878114179,34.62,173.28,173.25,19.52525255]
[1747878114471,34.62,173.28,173.26,19.52525255]
[1747878115062,34.62,173.28,173.25,19.52525255]
[1747878115257,40.39105314,173.28,173.26,19.52525255]
[1747878115460,34.62,173.28,173.26,19.52525255]
[1747878116179,34.62,173.28,173.25,19.52525255]
[1747878116878,34.62,173.3,173.26,19.52525255]
[1747878117083,34.62,173.3,173.27,19.52525255]
[1747878117588,5.7700075,173.31,173.22,26.0]
[1747878117589,5.7700075,173.31,173.28,19.52525255]
[1747878118086,5.7700075,173.31,173.27,19.52525255]
[1747878119386,5.7700075,173.31,173.22,31.77278371]
[1747878119552,5.7700075,173.31,173.26,19.52525255]
[1747878119760,5.7700075,173.31,173.27,19.52525255]
[1747878120165,5.7700075,173.31,173.26,19.52525255]
[1747878120359,5.7700075,173.31,173.28,19.52525255]
[1747878120676,39.7202788,173.31,173.25,19.52525255]
[1747878121289,39.7202788,173.31,173.26,19.52525255]
[1747878121767,20.19502625,173.31,173.2,26.0]
[1747878121973,19.52525255,173.27,173.14,19.52525255]
[1747878122185,19.52525255,173.24,173.19,19.52525255]
[1747878122388,19.52525255,173.24,173.14,19.52525255]
[1747878122389,19.52525255,173.2,173.14,19.52525255]
[1747878122680,19.52525255,173.17,173.12,19.52525255]
[1747878122890,45.74,173.16,173.11,19.52525255]
[1747878123193,45.74,173.16,173.15,19.52525255]
[1747878123366,50.73400542,173.19,173.15,19.52525255]
[1747878123567,50.73400542,173.19,173.07,10.43918176]
[1747878123568,44.96,173.19,173.17,19.52525255]
[1747878123767,44.96,173.19,173.16,19.52525255]
[1747878124075,44.96,173.19,173.15,19.52525255]
[1747878124481,44.96,173.19,173.14,19.52525255]
[1747878124675,44.96,173.19,173.15,19.52525255]
[1747878125189,50.73401265,173.19,173.09,5.77711893]
[1747878125491,64.48525255,173.19,173.13,19.52525255]
[1747878125714,44.96,173.19,173.15,19.52525255]
[1747878125871,44.96,173.19,173.16,19.52525255]
[1747878126578,44.96,173.19,173.15,19.52525255]
[1747878127886,44.96,173.19,173.14,19.52525255]
[1747878128192,44.96,173.19,173.15,19.52525255]
[1747878129374,44.96,173.19,173.1,26.0]
[1747878129375,50.73420011,173.19,173.14,19.52525255]
[1747878129690,44.96,173.19,173.14,19.52525255]
[1747878129894,44.96,173.19,173.15,19.52525255]
[1747878130274,44.96,173.19,173.16,19.52525255]
[1747878130683,14.42675203,173.29,173.18,19.52525255]
[1747878130875,19.52525255,173.25,173.2,19.52525255]
[1747878131287,34.64,173.26,173.2,19.52525255]
[1747878131475,34.64,173.26,173.16,26.0]
[1747878131476,44.96,173.26,173.23,19.52525255]
[1747878131870,44.96,173.26,173.24,19.52525255]
[1747878133001,44.96,173.26,173.25,19.52525255]
[1747878133501,274.32382694,173.27,173.19,26.0]
[1747878133672,19.52525255,173.26,173.17,31.77467228]
[1747878133998,19.52525255,173.24,173.19,19.52525255]
[1747878134175,34.64,173.24,173.2,19.52525255]
[1747878134794,34.64,173.24,173.21,19.52525255]
[1747878135394,34.64,173.24,173.22,19.52525255]
[1747878135698,44.96,173.25,173.23,19.52525255]
[1747878135905,44.96,173.25,173.24,19.52525255]
[1747878136284,44.96,173.25,173.21,5.77324925]
[1747878136504,44.96,173.25,173.24,19.52525255]
[1747878136880,44.96,173.25,173.24,25.2975915]
[1747878138092,223.59247031,173.27,173.24,25.2975915]
[1747878138287,223.59247031,173.27,173.25,19.52525255]
[1747878138699,223.59247031,173.27,173.26,19.52525255]
[1747878138896,223.59247031,173.27,173.24,5.77233895]
[1747878139095,216.02,173.27,173.24,19.52525255]
[1747878139609,216.02,173.27,173.25,19.52525255]
[1747878139793,216.02,173.27,173.26,19.52525255]
[1747878140179,216.02,173.27,173.22,5.77300542]
[1747878140180,241.31659599,173.27,173.22,19.52525255]
[1747878140400,19.52525255,173.24,173.19,19.52525255]
[1747878140597,19.52525255,173.2,173.12,19.52525255]
[1747878140785,19.52525255,173.17,173.12,19.52525255]
[1747878140989,25.29991106,173.18,173.12,19.52525255]
[1747878141906,25.29991106,173.18,173.13,19.52525255]
[1747878142105,25.29991106,173.18,173.12,19.52525255]
[1747878142512,25.29991106,173.18,173.13,19.52525255]
[1747878143178,25.29991106,173.18,173.12,19.52525255]
[1747878143385,19.52525255,173.16,173.06,26.0]
[1747878143592,19.52525255,173.14,173.08,19.52525255]
[1747878143800,34.64,173.13,173.04,5.77901063]
[1747878143989,44.96,173.12,173.08,19.52525255]
[1747878144182,44.96,173.12,173.09,19.52525255]
[1747878144387,44.96,173.12,173.1,19.52525255]
[1747878144582,221.87465851,173.18,173.11,19.52525255]
[1747878144803,79.62,173.17,173.13,19.52525255]
[1747878145889,79.62,173.17,173.14,19.52525255]
[1747878146504,221.87465851,173.18,173.14,19.52525255]
[1747878146713,44.98,173.17,173.15,19.52525255]
[1747878147211,44.98,173.17,173.11,5.77655689]
[1747878147212,44.98,173.17,173.16,19.52525255]
[1747878149124,44.98,173.17,173.05,0.14216157]
[1747878149125,0.14216157,173.15,173.02,19.52525255]
[1747878149322,19.52525255,173.1,173.05,19.52525255]
[1747878149486,44.98,173.1,173.09,19.52525255]
[1747878149690,44.98,173.13,173.09,19.52525255]
[1747878149917,44.98,173.13,173.11,19.52525255]
[1747878150098,44.98,173.13,173.1,19.52525255]
[1747878151100,44.98,173.13,173.11,19.52525255]
[1747878151303,44.98,173.13,173.12,19.52525255]
[1747878151709,44.98,173.13,173.05,26.0]
[1747878152094,44.98,173.13,173.11,19.52525255]
[1747878152619,5.77504038,173.16,173.12,19.52525255]
[1747878152801,44.98,173.15,173.08,26.0]
[1747878153115,44.98,173.2,173.14,25.30073706]
[1747878153415,44.98,173.2,173.17,19.52525255]
[1747878153928,44.98,173.2,173.19,19.52525255]
[1747878156215,44.92,173.26,173.19,19.52525255]
[1747878156417,44.92,173.26,173.22,19.52525255]
[1747878156591,44.92,173.26,173.19,31.77396075]
[1747878156797,44.92,173.26,173.22,19.52525255]
[1747878157308,5.77200577,173.25,173.2,19.52525255]
[1747878157511,19.52525255,173.24,173.15,5.77502907]
[1747878157830,34.64,173.23,173.19,19.52525255]
[1747878158819,40.41270682,173.23,173.2,19.52525255]
[1747878159822,40.41270682,173.23,173.19,19.52525255]
[1747878160321,34.64,173.23,173.19,19.52525255]
[1747878160520,34.54707509,173.23,173.2,19.52525255]
[1747878160729,40.31978976,173.23,173.2,19.52525255]
[1747878161525,40.31978976,173.23,173.21,19.52525255]
[1747878161526,34.54707509,173.23,173.21,19.52525255]
[1747878161926,34.54707509,173.23,173.17,5.77448635]
[1747878162233,85.3319377,173.26,173.17,5.77448635]
[1747878162431,104.85719025,173.26,173.17,5.77448635]
[1747878163413,104.85719025,173.26,173.21,19.52525255]
[1747878163614,85.3319377,173.26,173.21,19.52525255]
[1747878163921,104.85719025,173.26,173.21,19.52525255]
[1747878165117,85.3319377,173.26,173.21,19.52525255]
[1747878165431,85.3319377,173.26,173.22,19.52525255]
[1747878166627,44.92,173.26,173.22,19.52525255]
[1747878167427,44.92,173.26,173.23,19.52525255]
[1747878168012,50.69192701,173.26,173.22,19.52525255]
[1747878168210,70.21717956,173.26,173.21,19.52525255]
[1747878169214,50.69192701,173.26,173.22,19.52525255]
[1747878169417,44.92,173.26,173.22,19.52525255]
[1747878170425,44.92,173.26,173.2,19.52525255]
[1747878170426,70.21708042,173.26,173.2,19.52525255]
[1747878170837,50.69182787,173.26,173.22,19.52525255]
[1747878171011,44.92,173.26,173.23,19.52525255]
[1747878171216,50.69181519,173.26,173.23,19.52525255]
[1747878171536,70.21706774,173.26,173.17,5.77467228]
[1747878171711,70.21706774,173.26,173.21,19.52525255]
[1747878172225,50.69181519,173.26,173.22,19.52525255]
[1747878173014,44.92,173.26,173.23,19.52525255]
[1747878173334,44.92,173.26,173.25,19.52525255]
[1747878173505,136.9,173.3,173.25,19.52525255]
[1747878173506,44.92,173.3,173.25,19.52525255]
[1747878173712,44.92,173.3,173.27,19.52525255]
[1747878173910,44.92,173.3,173.28,19.52525255]
[1747878174339,44.92,173.3,173.27,19.52525255]
[1747878174534,5.76967459,173.32,173.27,19.52525255]
[1747878174727,50.67012181,173.31,173.28,19.52525255]
[1747878175922,50.67012181,173.31,173.22,26.0]
[1747878175923,50.67012181,173.31,173.27,19.52525255]
[1747878176126,70.19537436,173.31,173.26,19.52525255]
[1747878176431,50.67012181,173.31,173.27,19.52525255]
[1747878178529,50.67012181,173.31,173.24,19.52525255]
[1747878178530,19.52525255,173.29,173.24,19.52525255]
[1747878178713,5.77100646,173.28,173.24,19.52525255]
[1747878179115,5.77100646,173.28,173.22,31.77298091]
[1747878179417,5.77100646,173.28,173.24,19.52525255]
[1747878179618,5.77100646,173.28,173.25,19.52525255]
[1747878180947,5.77067343,173.29,173.25,19.52525255]
[1747878181741,5.77067343,173.29,173.25,13.3214343]
[1747878182242,13.3214343,173.26,173.21,13.3214343]
[1747878182743,13.3214343,173.24,173.18,13.3214343]
[1747878182956,5.77300542,173.22,173.18,13.3214343]
[1747878183125,5.77300542,173.22,173.19,13.3214343]
[1747878183642,50.67272192,173.23,173.19,19.55109131]
[1747878184017,44.9,173.23,173.19,19.55109131]
[1747878184218,50.67286328,173.23,173.2,19.55109131]
[1747878184843,50.67286328,173.23,173.19,19.55109131]
[1747878185059,19.55109131,173.2,173.11,5.77635554]
[1747878185346,34.64,173.2,173.16,19.55109131]
[1747878185520,34.64,173.2,173.17,19.55109131]
[1747878186022,34.64,173.2,173.16,19.55109131]
[1747878186218,19.55109131,173.18,173.13,19.55109131]
[1747878186437,19.55109131,173.18,173.07,14.44490216]
[1747878186438,19.55109131,173.17,173.12,19.55109131]
[1747878186744,19.55109131,173.15,173.1,19.55109131]
[1747878186954,5.77567286,173.14,173.1,19.55109131]
[1747878187648,40.41539194,173.15,173.12,19.55109131]
[1747878187949,34.64,173.15,173.12,19.55109131]
[1747878188147,34.64,173.15,173.13,19.55109131]
[1747878188652,34.64,173.15,173.08,5.77757861]
[1747878188823,44.8,173.21,173.14,19.55109131]
[1747878189157,44.8,173.21,173.18,19.55109131]
[1747878190156,44.8,173.21,173.19,19.55109131]
[1747878192254,50.57343202,173.21,173.17,19.55109131]
[1747878195853,50.57343202,173.21,173.18,19.55109131]
[1747878197962,70.12452333,173.21,173.14,5.77559527]
[1747878198259,70.12452333,173.21,173.13,26.0]
[1747878198260,19.55109131,173.2,173.15,19.55109131]
[1747878198462,70.12452333,173.21,173.16,19.55109131]
[1747878199044,19.55109131,173.2,173.15,19.55109131]
[1747878199241,54.19109131,173.19,173.06,14.44547524]
[1747878199445,19.55109131,173.18,173.12,19.55109131]
[1747878199739,54.19109131,173.19,173.14,19.55109131]
[1747878200061,34.64,173.19,173.16,19.55109131]
[1747878200444,40.41402516,173.19,173.16,19.55109131]
[1747878200640,40.41402516,173.19,173.09,40.44326217]
[1747878200844,40.41402516,173.19,173.15,19.55109131]
[1747878201370,40.41402516,173.19,173.09,40.44326217]
[1747878201560,40.41402516,173.19,173.06,93.78216157]
[1747878201561,19.55109131,173.16,173.06,59.0]
[1747878201871,19.55109131,173.15,173.1,19.55109131]
[1747878202046,44.82,173.14,173.1,19.55109131]
[1747878202253,44.82,173.14,173.13,19.55109131]
[1747878202559,44.82,173.14,173.12,19.45816639]
[1747878202871,44.82,173.14,173.12,19.55109131]
[1747878205665,44.82,173.14,173.12,13.34132231]
[1747878207847,44.82,173.14,173.11,13.34132231]
[1747878207848,50.59569552,173.14,173.11,13.34132231]
[1747878208047,50.59569552,173.14,173.08,26.0]
[1747878208048,50.59569552,173.14,173.12,13.34132231]
[1747878208345,50.59569552,173.14,173.08,26.0]
[1747878208555,44.82,173.14,173.11,13.34132231]
[1747878208942,44.82,173.14,173.13,13.34132231]
[1747878210372,44.82,173.14,173.11,13.34132231]
[1747878210568,50.59576622,173.14,173.1,13.34132231]
[1747878210871,50.59576622,173.14,173.05,59.0]
[1747878210872,44.82,173.14,173.08,5.77736102]
[1747878211072,44.82,173.14,173.11,13.34132231]
[1747878211073,50.59572637,173.14,173.11,13.34132231]
[1747878211376,50.59572637,173.14,173.1,13.34132231]
[1747878211684,50.59572637,173.14,173.11,13.34132231]
[1747878213382,50.59572637,173.14,173.1,13.34132231]
[1747878213956,50.59572637,173.14,173.09,13.34132231]
[1747878214186,63.93704868,173.14,173.09,13.34132231]
[1747878214573,63.93704868,173.14,173.04,5.77896864]
[1747878214769,13.34132231,173.13,173.08,13.34132231]
[1747878214964,63.93704868,173.14,173.09,13.34132231]
[1747878215782,13.34132231,173.13,173.03,5.77934462]
[1747878216090,50.59572637,173.14,173.09,13.34132231]
[1747878216888,50.59572637,173.14,173.1,13.34132231]
[1747878217385,63.93704868,173.14,173.09,13.34132231]
[1747878217687,66.8561316,173.14,173.09,13.34132231]
[1747878218587,63.93704868,173.14,173.09,13.34132231]
[1747878218786,50.59572637,173.14,173.1,13.34132231]
[1747878219190,5.77467228,173.17,173.11,13.34132231]
[1747878219388,79.36,173.16,173.12,13.34132231]
[1747878219566,92.70132231,173.16,173.11,13.34132231]
[1747878220582,5.7753393,173.15,173.11,13.34132231]